fUSD/lending_fUSD_20251108
["ID","MTS","AMOUNT","RATE_DAILY","PERIOD"]
[393401145,1762591925919,-500.0,0.00032876,2]
[393401146,1762591925928,-500.0,0.00032876,2]
[393401147,1762591925938,-500.0,0.00032876,2]
[393401148,1762591925948,-500.0,0.00032876,2]
[393401149,1762591925957,-359.43454234,0.00032876,2]
[393401150,1762591925967,-500.0,0.00032876,2]
[393401151,1762591925977,-500.0,0.00032876,2]
[393401152,1762591925986,-500.0,0.00032876,2]
[393401153,1762591925997,-500.0,0.00032876,2]
[393401154,1762591926007,-500.0,0.00032876,2]
[393401155,1762591926017,-500.0,0.00032876,2]
[393401156,1762591926027,-500.0,0.00032876,2]
[393401157,1762591926038,-500.0,0.00032876,2]
[393401158,1762591926049,-500.0,0.00032876,2]
[393401159,1762591926059,-500.0,0.00032876,2]
[393401160,1762591926069,-500.0,0.00032876,2]
[393401161,1762591926079,-493.73422463,0.00032876,2]
[393401162,1762591926089,-500.0,0.00032876,2]
[393401163,1762591926099,-500.0,0.00032876,2]
[393401164,1762591926109,-500.0,0.00032876,2]
[393401165,1762591926118,-500.0,0.00032876,2]
[393401166,1762591926128,-500.0,0.00032876,2]
[393401167,1762591926139,-414.88218495,0.00032876,2]
[393401168,1762591926149,-340.08,0.00032877,2]
[393401169,1762591926160,-1171.28,0.00032877,2]
[393401170,1762591926170,-500.0,0.00032877,7]
[393401171,1762591926180,-500.0,0.00032877,7]
[393401172,1762591926190,-500.0,0.00032877,7]
[393401173,1762591926200,-500.0,0.00032877,7]
[393401174,1762591926210,-500.0,0.00032877,7]
[393401175,1762591926220,-500.0,0.00032877,7]
[393401176,1762591926230,-500.0,0.00032877,7]
[393401177,1762591926239,-500.0,0.00032877,7]
[393401178,1762591926249,-500.0,0.00032877,7]
[393401179,1762591926259,-500.0,0.00032877,7]
[393401180,1762591926268,-500.0,0.00032877,7]
[393401181,1762591926278,-500.0,0.00032877,7]
[393401182,1762591926287,-500.0,0.00032877,7]
[393401183,1762591926297,-500.0,0.00032877,7]
[393401184,1762591926307,-500.0,0.00032877,7]
[393401185,1762591926316,-500.0,0.00032877,7]
[393401186,1762591926326,-641.45276887,0.00032877,7]
[393401187,1762591926335,-500.0,0.00032877,7]
[393401188,1762591926345,-500.0,0.00032877,7]
[393401189,1762591926355,-500.0,0.00032877,7]
[393401190,1762591926364,-500.0,0.00032877,7]
[393401191,1762591926373,-500.0,0.00032877,7]
[393401192,1762591926383,-500.0,0.00032877,7]
[393401193,1762591926393,-500.0,0.00032877,7]
[393401194,1762591926402,-500.0,0.00032877,7]
[393401195,1762591926411,-500.0,0.00032877,7]
[393401196,1762591926424,-500.0,0.00032877,7]
[393401197,1762591926434,-500.0,0.00032877,7]
[393401198,1762591926444,-500.0,0.00032877,7]
[393401199,1762591926454,-500.0,0.00032877,7]
[393401200,1762591926464,-500.0,0.00032877,7]
[393401201,1762591926473,-500.0,0.00032877,7]
[393401202,1762591926483,-500.0,0.00032877,7]
[393401203,1762591926494,-500.0,0.00032877,7]
[393401204,1762591926503,-500.0,0.00032877,7]
[393401205,1762591926512,-500.0,0.00032877,7]
[393401206,1762591926522,-500.0,0.00032877,7]
[393401207,1762591926532,-237.93919654,0.00032877,7]
[393401208,1762591926542,-500.0,0.00032877,7]
[393401209,1762591926552,-500.0,0.00032877,7]
[393401210,1762591926561,-500.0,0.00032877,7]
[393401211,1762591926571,-500.0,0.00032877,7]
[393401212,1762591926581,-500.0,0.00032877,7]
[393401213,1762591926591,-500.0,0.00032877,7]
[393401214,1762591926600,-500.0,0.00032877,7]
[393401215,1762591926609,-500.0,0.00032877,7]
[393401216,1762591926619,-500.0,0.00032877,7]
[393401217,1762591926629,-500.0,0.00032877,7]
[393401218,1762591926638,-500.0,0.00032877,7]
[393401219,1762591926648,-500.0,0.00032877,7]
[393401220,1762591926657,-500.0,0.00032877,7]
[393401221,1762591926667,-500.0,0.00032877,7]
[393401222,1762591926677,-500.0,0.00032877,7]
[393401223,1762591926687,-350.0,0.00032877,7]
[393401224,1762591926697,-500.0,0.00032877,7]
[393401225,1762591926707,-150.0,0.00032877,7]
[393401226,1762591926717,-150.0,0.00032877,60]
[393401227,1762591926728,-150.0,0.00032877,2]
[393401228,1762591926738,-500.0,0.00032877,2]
[393401229,1762591926748,-223.74489997,0.0003288,30]
[393401230,1762591926758,-223.74,0.0003288,30]
[393401231,1762591926768,-232.69,0.0003288,30]
[393401232,1762591926778,-269.92761558,0.0003288,30]
[393401233,1762591926788,-269.92761558,0.0003288,30]
[393401234,1762591926797,-269.92761558,0.0003288,30]
[393401235,1762591926807,-269.92761558,0.0003288,30]
[393401236,1762591926817,-269.92761558,0.0003288,30]
[393401237,1762591926827,-269.92761558,0.0003288,30]
[393401238,1762591926838,-269.92761558,0.0003288,30]
[393401239,1762591926848,-269.92761558,0.0003288,30]
[393401240,1762591926859,-269.92761558,0.0003288,30]
[393401241,1762591926869,-269.92761558,0.0003288,30]
[393401242,1762591926880,-269.92761558,0.0003288,30]
[393401243,1762591926890,-269.92761558,0.0003288,30]
[393401244,1762591926901,-269.92761558,0.0003288,30]
[393401245,1762591926911,-269.92761558,0.0003288,30]
[393401246,1762591926921,-269.92761558,0.0003288,30]
[393401247,1762591926931,-269.92761558,0.0003288,30]
[393401248,1762591926942,-269.92761558,0.0003288,30]
[393401249,1762591926952,-269.92761558,0.0003288,30]
[393401250,1762591926962,-269.92761558,0.0003288,30]
[393401251,1762591926972,-269.92,0.0003288,30]
[393401252,1762591926982,-629.83110302,0.0003288,30]
[393401253,1762591926992,-629.83110302,0.0003288,30]
[393401254,1762591927003,-629.83110302,0.0003288,30]
[393401255,1762591927012,-629.83110302,0.0003288,30]
[393401256,1762591927023,-629.83110302,0.0003288,30]
[393401257,1762591927033,-629.83110302,0.0003288,30]
[393401258,1762591927044,-629.83110302,0.0003288,30]
[393401259,1762591927054,-629.83110302,0.0003288,30]
[393401260,1762591927065,-629.83110302,0.0003288,30]
[393401261,1762591927075,-629.83110302,0.0003288,30]
[393401262,1762591927085,-629.83110302,0.0003288,30]
[393401263,1762591927096,-629.83110302,0.0003288,30]
[393401264,1762591927105,-629.83110302,0.0003288,30]
[393401265,1762591927115,-629.83110302,0.0003288,30]
[393401266,1762591927125,-629.83110302,0.0003288,30]
[393401267,1762591927135,-629.83110302,0.0003288,30]
[393401268,1762591927145,-629.83110302,0.0003288,30]
[393401269,1762591927155,-629.83110302,0.0003288,30]
[393401270,1762591927165,-629.83110302,0.0003288,30]
[393401271,1762591927175,-629.83,0.0003288,30]
[393401272,1762591927185,-415.71,0.00032886,2]
[393401273,1762591927196,-448.41,0.000329,30]
[393401274,1762591927206,-169.11,0.00032954,2]
[393401275,1762591927217,-169.11,0.00032954,2]
[393401276,1762591927227,-169.11,0.00032954,2]
[393401277,1762591927237,-169.11,0.00032954,2]
[393401278,1762591927247,-169.11,0.00032954,2]
[393401279,1762591927258,-169.11,0.00032954,2]
[393401280,1762591927269,-169.11,0.00032954,2]
[393401281,1762591927279,-169.11,0.00032954,2]
[393401282,1762591927498,-169.11,0.00032954,2]
[393401283,1762591927509,-169.11,0.00032954,2]
[393401284,1762591927519,-169.11,0.00032954,2]
[393401285,1762591927529,-181.26871314,0.00032986,10]
[393401286,1762591927539,-1536.74855903,0.00033,2]
[393401287,1762591927548,-50864.56442731,0.00033,2]
[393401288,1762591927558,-151.43090155,0.00033,2]
[393401289,1762591927568,-3681.0,0.00033,3]
[393401290,1762591927577,-17336.88496464,0.00033,7]
[393401291,1762591927587,-23199.64250863,0.00033,2]
[393401292,1762591927597,-1007.01715113,0.00033,7]
[393401293,1762591927607,-2000.0,0.00033002,120]
[393401294,1762591927616,-150.0,0.00033014,60]
[393401295,1762591927626,-150.0,0.00033014,2]
[393401296,1762591927635,-500.0,0.00033014,2]
[393401297,1762591927644,-152.0,0.00033024,30]
[393401298,1762591927654,-239.86,0.0003315,12]
[393401299,1762591927664,-150.0,0.00033151,60]
[393401300,1762591927673,-176.2203912,0.00033151,2]
[393401301,1762591927682,-357.04048493,0.00033151,2]
[393401302,1762591927691,-447.78,0.00033165,2]
[393401303,1762591927701,-4817.0,0.00033208,2]
[393401304,1762591927711,-152.0,0.00033263,31]
[393401305,1762591927721,-188.29204011,0.00033288,60]
[393401306,1762591927730,-3606.89,0.000333,2]
[393401307,1762591927739,-3000.0,0.000334,15]
[393401308,1762591927748,-3000.0,0.000334,7]
[393401309,1762591927759,-42811.82,0.000334,14]
[393401310,1762591927768,-204.30975317,0.00033439,120]
[393401311,1762591927778,-204.40080516,0.00033439,120]
[393401312,1762591927788,-477.03,0.00033448,2]
[393401313,1762591927797,-1194.81598635,0.000335,2]
[393401314,1762591927807,-152.0,0.00033503,32]
[393401315,1762591927816,-459.0,0.00033567,30]
[393401316,1762591927825,-239.86,0.00033698,13]
[393401317,1762591927835,-415.63,0.00033709,2]
[393401318,1762591927844,-152.0,0.00033742,33]
[393401319,1762591927853,-549.32,0.00033776,2]
[393401320,1762591927862,-549.32,0.00033776,2]
[393401321,1762591927871,-549.32,0.00033776,2]
[393401322,1762591927880,-548.77,0.00033776,2]
[393401323,1762591927890,-549.32,0.00033776,2]
[393401324,1762591927899,-549.32,0.00033776,2]
[393401325,1762591927909,-549.32,0.00033776,2]
[393401326,1762591927919,-549.32,0.00033776,2]
[393401327,1762591927929,-549.32,0.00033776,2]
[393401328,1762591927939,-549.32,0.00033776,2]
[393401329,1762591927949,-549.32,0.00033776,2]
[393401330,1762591927959,-549.32,0.00033776,2]
[393401331,1762591927969,-549.32,0.00033776,2]
[393401332,1762591927979,-549.32,0.00033776,2]
[393401333,1762591927988,-549.32,0.00033776,2]
[393401334,1762591927998,-549.32,0.00033776,2]
[393401335,1762591928008,-1098.56,0.00033776,2]
[393401336,1762591928018,-549.32,0.00033776,2]
[393401337,1762591928027,-549.32,0.00033776,2]
[393401338,1762591928037,-549.32,0.00033776,2]
[393401339,1762591928048,-549.32,0.00033776,2]
[393401340,1762591928058,-2000.0,0.00033868,120]
[393401341,1762591928068,-226.447848,0.00033894,60]
[393401342,1762591928077,-239.841422,0.00033894,60]
[393401343,1762591928087,-152.0,0.00033981,34]
[393401344,1762591928098,-976.96,0.00034,2]
[393401345,1762591928108,-79316.14733348,0.00034,2]
[393401346,1762591928118,-1000.0,0.00034,36]
[393401347,1762591928128,-200.0,0.00034,120]
[393401348,1762591928138,-3625.33,0.00034,2]
[393401349,1762591928148,-1006.0,0.00034,7]
[393401350,1762591928159,-44203.0,0.00034,2]
[393401351,1762591928169,-800.0,0.00034131,7]
[393401352,1762591928178,-500.0,0.00034131,7]
[393401353,1762591928189,-800.0,0.00034131,7]
[393401354,1762591928199,-500.0,0.00034131,7]
[393401355,1762591928208,-800.0,0.00034131,7]
[393401356,1762591928221,-500.0,0.00034131,7]
[393401357,1762591928231,-500.0,0.00034131,7]
[393401358,1762591928242,-800.0,0.00034131,7]
[393401359,1762591928252,-169.91210749,0.00034131,7]
[393401360,1762591928262,-800.0,0.00034131,7]
[393401361,1762591928272,-500.0,0.00034131,7]
[393401362,1762591928283,-500.0,0.00034131,7]
[393401363,1762591928293,-800.0,0.00034131,7]
[393401364,1762591928304,-500.0,0.00034131,7]
[393401365,1762591928314,-800.0,0.00034131,7]
[393401366,1762591928324,-800.0,0.00034131,7]
[393401367,1762591928335,-500.0,0.00034131,7]
[393401368,1762591928345,-500.0,0.00034131,7]
[393401369,1762591928355,-500.0,0.00034131,7]
[393401370,1762591928366,-800.0,0.00034131,7]
[393401371,1762591928377,-500.0,0.00034131,7]
[393401372,1762591928387,-800.0,0.00034131,7]
[393401373,1762591928397,-500.0,0.00034131,7]
[393401374,1762591928408,-500.0,0.00034131,7]
[393401375,1762591928421,-800.0,0.00034131,7]
[393401376,1762591928431,-647.89637061,0.00034131,7]
[393401377,1762591928441,-500.0,0.00034131,7]
[393401378,1762591928450,-800.0,0.00034131,7]
[393401379,1762591928459,-500.0,0.00034131,7]
[393401380,1762591928471,-800.0,0.00034131,7]
[393401381,1762591928482,-500.0,0.00034131,7]
[393401382,1762591928492,-600.0,0.00034131,7]
[393401383,1762591928503,-800.0,0.00034131,7]
[393401384,1762591928513,-500.0,0.00034131,7]
[393401385,1762591928523,-800.0,0.00034131,7]
[393401386,1762591928533,-600.0,0.00034131,7]
[393401387,1762591928542,-500.0,0.00034131,7]
[393401388,1762591928551,-600.0,0.00034131,7]
[393401389,1762591928561,-800.0,0.00034131,7]
[393401390,1762591928571,-500.7,0.00034131,7]
[393401391,1762591928581,-800.0,0.00034131,7]
[393401392,1762591928591,-600.0,0.00034131,7]
[393401393,1762591928600,-500.0,0.00034131,7]
[393401394,1762591928611,-800.0,0.00034131,7]
[393401395,1762591928621,-600.0,0.00034131,7]
[393401396,1762591928632,-500.0,0.00034131,7]
[393401397,1762591928642,-800.0,0.00034131,7]
[393401398,1762591928652,-600.0,0.00034131,7]
[393401399,1762591928662,-500.0,0.00034131,7]
[393401400,1762591928672,-800.0,0.00034131,7]
[393401401,1762591928682,-600.0,0.00034131,7]
[393401402,1762591928692,-500.0,0.00034131,7]
[393401403,1762591928702,-800.0,0.00034131,7]
[393401404,1762591928712,-600.0,0.00034131,7]
[393401405,1762591928722,-500.0,0.00034131,7]
[393401406,1762591928731,-800.0,0.00034131,7]
[393401407,1762591928741,-600.0,0.00034131,7]
[393401408,1762591928751,-500.0,0.00034131,7]
[393401409,1762591928761,-800.0,0.00034131,7]
[393401410,1762591928771,-600.0,0.00034131,7]
[393401411,1762591928782,-500.0,0.00034131,7]
[393401412,1762591928791,-800.0,0.00034131,7]
[393401413,1762591928801,-500.0,0.00034131,7]
[393401414,1762591928812,-600.0,0.00034131,7]
[393401415,1762591928822,-500.0,0.00034131,7]
[393401416,1762591928832,-800.0,0.00034131,7]
[393401417,1762591928843,-600.0,0.00034131,7]
[393401418,1762591928853,-500.0,0.00034131,7]
[393401419,1762591928864,-800.0,0.00034131,7]
[393401420,1762591928874,-1400.0,0.00034131,7]
[393401421,1762591928885,-600.0,0.00034131,7]
[393401422,1762591928895,-500.0,0.00034131,7]
[393401423,1762591928905,-500.0,0.00034131,7]
[393401424,1762591928915,-1400.0,0.00034131,7]
[393401425,1762591928926,-800.0,0.00034131,7]
[393401426,1762591928936,-600.0,0.00034131,7]
[393401427,1762591928947,-500.0,0.00034131,7]
[393401428,1762591928958,-500.0,0.00034131,7]
[393401429,1762591928970,-500.0,0.00034131,7]
[393401430,1762591928982,-500.0,0.00034131,7]
[393401431,1762591928992,-1400.0,0.00034131,7]
[393401432,1762591929003,-800.0,0.00034131,7]
[393401433,1762591929014,-500.0,0.00034131,7]
[393401434,1762591929025,-600.0,0.00034131,7]
[393401435,1762591929035,-500.0,0.00034131,7]
[393401436,1762591929046,-500.0,0.00034131,7]
[393401437,1762591929056,-937.17122637,0.00034131,7]
[393401438,1762591929067,-500.0,0.00034131,7]
[393401439,1762591929078,-600.0,0.00034131,7]
[393401440,1762591929088,-1400.0,0.00034131,7]
[393401441,1762591929098,-500.0,0.00034131,7]
[393401442,1762591929107,-693.18681666,0.00034131,7]
[393401443,1762591929117,-500.0,0.00034131,7]
[393401444,1762591929127,-600.0,0.00034131,7]
[393401445,1762591929137,-500.0,0.00034131,7]
[393401446,1762591929147,-1400.0,0.00034131,7]
[393401447,1762591929157,-500.0,0.00034131,7]
[393401448,1762591929167,-500.5298232,0.00034131,7]
[393401449,1762591929176,-600.0,0.00034131,7]
[393401450,1762591929187,-576.86483902,0.00034131,7]
[393401451,1762591929197,-1400.0,0.00034131,7]
[393401452,1762591929208,-500.0,0.00034131,7]
[393401453,1762591929219,-500.0,0.00034131,7]
[393401454,1762591929231,-600.0,0.00034131,7]
[393401455,1762591929242,-500.0,0.00034131,7]
[393401456,1762591929253,-1400.0,0.00034131,7]
[393401457,1762591929264,-500.0,0.00034131,7]
[393401458,1762591929275,-600.0,0.00034131,7]
[393401459,1762591929286,-500.0,0.00034131,7]
[393401460,1762591929296,-1400.0,0.00034131,7]
[393401461,1762591929306,-600.0,0.00034131,7]
[393401462,1762591929316,-500.0,0.00034131,7]
[393401463,1762591929327,-1400.0,0.00034131,7]
[393401464,1762591929336,-500.0,0.00034131,7]
[393401465,1762591929347,-500.0,0.00034131,7]
[393401466,1762591929356,-600.0,0.00034131,7]
[393401467,1762591929366,-500.0,0.00034131,7]
[393401468,1762591929376,-1400.0,0.00034131,7]
[393401469,1762591929386,-500.0,0.00034131,7]
[393401470,1762591929397,-500.0,0.00034131,7]
[393401471,1762591929406,-600.0,0.00034131,7]
[393401472,1762591929418,-198.61377451,0.00034131,7]
[393401473,1762591929429,-500.0,0.00034131,7]
[393401474,1762591929439,-1400.0,0.00034131,7]
[393401475,1762591929448,-500.0,0.00034131,7]
[393401476,1762591929458,-500.0,0.00034131,7]
[393401477,1762591929468,-500.0,0.00034131,7]
[393401478,1762591929478,-600.0,0.00034131,7]
[393401479,1762591929487,-500.0,0.00034131,7]
[393401480,1762591929498,-1400.0,0.00034131,7]
[393401481,1762591929507,-500.0,0.00034131,7]
[393401482,1762591929518,-500.0,0.00034131,7]
[393401483,1762591929527,-789.89643871,0.00034131,7]
[393401484,1762591929537,-500.0,0.00034131,7]
[393401485,1762591929547,-500.0,0.00034131,7]
[393401486,1762591929557,-1400.0,0.00034131,7]
[393401487,1762591929566,-500.0,0.00034131,7]
[393401488,1762591929576,-500.0,0.00034131,7]
[393401489,1762591929587,-500.0,0.00034131,7]
[393401490,1762591929597,-500.0,0.00034131,7]
[393401491,1762591929608,-1400.0,0.00034131,7]
[393401492,1762591929617,-500.0,0.00034131,7]
[393401493,1762591929626,-500.0,0.00034131,7]
[393401494,1762591929636,-500.0,0.00034131,7]
[393401495,1762591929646,-500.0,0.00034131,7]
[393401496,1762591929656,-1400.0,0.00034131,7]
[393401497,1762591929665,-500.0,0.00034131,7]
[393401498,1762591929674,-500.0,0.00034131,7]
[393401499,1762591929684,-500.0,0.00034131,7]
[393401500,1762591929693,-500.0,0.00034131,7]
[393401501,1762591929703,-203.32387378,0.00034131,7]
[393401502,1762591929712,-1400.0,0.00034131,7]
[393401503,1762591929721,-500.0,0.00034131,7]
[393401504,1762591929731,-500.0,0.00034131,7]
[393401505,1762591929740,-500.0,0.00034131,7]
[393401506,1762591929749,-500.0,0.00034131,7]
[393401507,1762591929759,-500.0,0.00034131,7]
[393401508,1762591929768,-500.0,0.00034131,7]
[393401509,1762591929778,-500.0,0.00034131,7]
[393401510,1762591929787,-500.0,0.00034131,7]
[393401511,1762591929795,-509.92432689,0.00034131,7]
[393401512,1762591929804,-1400.0,0.00034131,7]
[393401513,1762591929813,-500.0,0.00034131,7]
[393401514,1762591929822,-500.0,0.00034131,7]
[393401515,1762591929832,-500.0,0.00034131,7]
[393401516,1762591929841,-500.0,0.00034131,7]
[393401517,1762591929850,-500.0,0.00034131,7]
[393401518,1762591929859,-1400.0,0.00034131,7]
[393401519,1762591929869,-500.0,0.00034131,7]
[393401520,1762591929878,-500.0,0.00034131,7]
[393401521,1762591929887,-500.0,0.00034131,7]
[393401522,1762591929895,-500.0,0.00034131,7]
[393401523,1762591929905,-1400.0,0.00034131,7]
[393401524,1762591929914,-500.0,0.00034131,7]
[393401525,1762591929923,-500.0,0.00034131,7]
[393401526,1762591929932,-500.0,0.00034131,7]
[393401527,1762591929942,-1400.0,0.00034131,7]
[393401528,1762591929951,-500.0,0.00034131,7]
[393401529,1762591929960,-500.0,0.00034131,7]
[393401530,1762591929970,-500.0,0.00034131,7]
[393401531,1762591929979,-1400.0,0.00034131,7]
[393401532,1762591929988,-500.0,0.00034131,7]
[393401533,1762591929997,-500.0,0.00034131,7]
[393401534,1762591930007,-500.0,0.00034131,7]
[393401535,1762591930016,-1400.0,0.00034131,7]
[393401536,1762591930025,-894.92837101,0.00034131,7]
[393401537,1762591930034,-513.33614976,0.00034131,7]
[393401538,1762591930043,-500.0,0.00034131,7]
[393401539,1762591930053,-1400.0,0.00034131,7]
[393401540,1762591930063,-500.0,0.00034131,7]
[393401541,1762591930073,-500.0,0.00034131,7]
[393401542,1762591930082,-500.0,0.00034131,7]
[393401543,1762591930091,-1400.0,0.00034131,7]
[393401544,1762591930101,-500.0,0.00034131,7]
[393401545,1762591930111,-500.0,0.00034131,7]
[393401546,1762591930120,-500.0,0.00034131,7]
[393401547,1762591930129,-1400.0,0.00034131,7]
[393401548,1762591930138,-500.0,0.00034131,7]
[393401549,1762591930148,-500.0,0.00034131,7]
[393401550,1762591930157,-500.0,0.00034131,7]
[393401551,1762591930166,-500.0,0.00034131,7]
[393401552,1762591930175,-1400.0,0.00034131,7]
[393401553,1762591930184,-500.0,0.00034131,7]
[393401554,1762591930194,-500.0,0.00034131,7]
[393401555,1762591930203,-866.04224606,0.00034131,7]
[393401556,1762591930213,-1400.0,0.00034131,7]
[393401557,1762591930223,-639.49750683,0.00034131,7]
[393401558,1762591930232,-500.0,0.00034131,7]
[393401559,1762591930242,-1400.0,0.00034131,7]
[393401560,1762591930251,-500.0,0.00034131,7]
[393401561,1762591930260,-2235.86977772,0.00034131,7]
[393401562,1762591930270,-500.0,0.00034131,7]
[393401563,1762591930279,-500.0,0.00034131,7]
[393401564,1762591930289,-500.0,0.00034131,7]
[393401565,1762591930299,-500.0,0.00034131,7]
[393401566,1762591930309,-500.0,0.00034131,7]
[393401567,1762591930318,-500.0,0.00034131,7]
[393401568,1762591930327,-500.0,0.00034131,7]
[393401569,1762591930337,-500.0,0.00034131,7]
[393401570,1762591930347,-500.0,0.00034131,7]
[393401571,1762591930357,-500.0,0.00034131,7]
[393401572,1762591930366,-500.0,0.00034131,7]
[393401573,1762591930376,-500.0,0.00034131,7]
[393401574,1762591930385,-500.0,0.00034131,7]
[393401575,1762591930395,-500.0,0.00034131,7]
[393401576,1762591930404,-500.0,0.00034131,7]
[393401577,1762591930414,-911.48749993,0.00034131,7]
[393401578,1762591930426,-448.41,0.000342,30]
[393401579,1762591930436,-152.0,0.00034221,35]
[393401580,1762591930446,-239.86,0.00034246,14]
[393401581,1762591930456,-17786.84463885,0.0003429,7]
[393401582,1762591930467,-305.23,0.00034313,2]
[393401583,1762591930477,-3000.0,0.000344,15]
[393401584,1762591930487,-3000.0,0.000344,7]
[393401585,1762591930498,-152.0,0.0003446,36]
[393401586,1762591930508,-1706.36816701,0.0003449,2]
[393401587,1762591930517,-831.26,0.00034538,2]
[393401588,1762591930527,-415.88,0.00034538,2]
[393401589,1762591930537,-415.88,0.00034538,2]
[393401590,1762591930547,-415.88,0.00034538,2]
[393401591,1762591930557,-415.88,0.00034538,2]
[393401592,1762591930566,-415.88,0.00034538,2]
[393401593,1762591930575,-415.88,0.00034538,2]
[393401594,1762591930584,-415.88,0.00034538,2]
[393401595,1762591930594,-415.88,0.00034538,2]
[393401596,1762591930603,-415.88,0.00034538,2]
[393401597,1762591930612,-415.88,0.00034538,2]
[393401598,1762591930621,-500.0,0.00034609,2]
[393401599,1762591930631,-152.0,0.00034699,37]
[393401600,1762591930640,-2000.0,0.00034734,120]
[393401601,1762591930650,-239.86,0.00034794,15]
[393401602,1762591930660,-261.2,0.00034822,30]
[393401603,1762591930670,-1936.95,0.00034867,30]
[393401604,1762591930680,-212.0,0.0003488,30]
[393401605,1762591930689,-10575.0,0.000349,30]
[393401606,1762591930699,-154.69702525,0.000349,120]
[393401607,1762591930708,-5516.0,0.000349,3]
[393401608,1762591930719,-226.447848,0.00034925,60]
[393401609,1762591930728,-239.841422,0.00034925,60]
[393401610,1762591930739,-152.0,0.00034939,38]
[393401611,1762591930749,-1000.0,0.00035,15]
[393401612,1762591930759,-1132.23,0.00035,14]
[393401613,1762591930769,-1000.0,0.00035,14]
[393401614,1762591930779,-1000.0,0.00035,21]
[393401615,1762591930788,-235.2,0.00035,2]
[393401616,1762591930798,-3162.72758788,0.00035,15]
[393401617,1762591930807,-401.42820235,0.00035,2]
[393401618,1762591930817,-1219.70137002,0.00035,2]
[393401619,1762591930827,-354.56713992,0.00035,3]
[393401620,1762591930837,-2006.0,0.00035,7]
[393401621,1762591930847,-401.24449857,0.00035,31]
[393401622,1762591930856,-1000.0,0.00035,48]
[393401623,1762591930865,-161.19045101,0.00035,14]
[393401624,1762591930874,-151.0,0.00035,14]
[393401625,1762591930884,-1006.0,0.00035,7]
[393401626,1762591930894,-5000.51592349,0.00035,5]
[393401627,1762591930903,-160.0,0.00035,14]
[393401628,1762591930913,-10500.0,0.00035,13]
[393401629,1762591930922,-574.0,0.00035002,2]
[393401630,1762591930931,-3424.0,0.00035002,2]
[393401631,1762591930941,-607.0,0.00035002,2]
[393401632,1762591930950,-1316.0,0.00035002,2]
[393401633,1762591930960,-820.0,0.00035002,2]
[393401634,1762591930971,-1596.0,0.00035002,2]
[393401635,1762591930980,-906.0,0.00035002,2]
[393401636,1762591930991,-812.0,0.00035002,2]
[393401637,1762591931002,-1273.0,0.00035002,2]
[393401638,1762591931012,-6660.0,0.00035002,2]
[393401639,1762591931022,-2142.0,0.00035002,2]
[393401640,1762591931032,-6477.0,0.00035002,2]
[393401641,1762591931042,-151.14,0.000351,7]
[393401642,1762591931052,-448.41,0.000351,30]
[393401643,1762591931262,-152.0,0.00035178,39]
[393401644,1762591931274,-388.7934094,0.00035186,7]